{"text_format":"3","workbook":"xlsx","n_sheets":4,"sheets":["טופס הצעת מחיר","נתוני תרשים","פירוט עלות","סיכום עלות הצעת מחיר"],"not_rendered":{"charts":1,"images":2,"defined_names":11},"read":"whole","date_system":"1900"}

{"sheet":"טופס הצעת מחיר","index":0,"n_rows":21,"n_cols":6,"rows_kept":21,"merged":[[0,1,0,4],[1,1,1,2],[7,1,8,1],[7,2,8,2],[10,1,10,5],[12,1,12,5],[14,1,14,5],[15,1,15,2],[15,4,15,5],[16,1,16,2],[16,4,16,5],[18,1,18,5],[19,1,19,2],[19,4,19,5],[20,1,20,2],[20,4,20,5]]}
[null,"טופס הצעת מחיר לבנייה"]
[null,"פרטי בעלים",null,null,"פרטי קבלן"]
[null,"שם","הזן את שם הבעלים בתא זה",null,"חברה","הזן שם חברה של קבלן בתא זה"]
[null,"כתובת","הזן כתובת בעלים בתא זה",null,"שם","הזן שם קבלן בתא זה"]
[null,"עיר, מיקוד","הזן עיר, מדינה ומיקוד של בעלים בתא זה",null,"כתובת","הזן כתובת של קבלן בתא זה"]
[null,"טלפון","הזן מספר טלפון של בעלים בתא זה",null,"עיר, מיקוד","הזן את העיר, המדינה והמיקוד של הקבלן בתא זה"]
[null,"דואר אלקטרוני","הזן כתובת דואר אלקטרוני של בעלים בתא זה",null,"טלפון","הזן את מספר הטלפון של הקבלן בתא זה"]
[null,"שם הפרויקט","הזן את שם הפרוייקט בתא זה",null,"דואר אלקטרוני","הזן כתובת דואר אלקטרוני של קבלן בתא זה "]
[{"$nulls":4},"תאריך השלמה","הזן תאריך השלמה בתא זה"]
[null,"היקף העבודה"]
[null,"היקף העבודה של הפרויקט מופיע כאן. הקלד את כל המפרטים שאתה רוצה. \n\nטקסט לדוגמה: זה יהיה פרויקט מדומה לבניית ערכה גדולה של מדרגות. נשתמש רק בעץ 2x4 ו- 2x8, וכן בסוגריים לקורות, כדי לבנות את המסגרת. מדרגות ייחתכו מהחומר 2x4. ייעשה שימוש בברגים של לא פחות מ- 2\".  כל מסמרים יהיו לא פחות מ-10 אגורות. משקל העיצוב יכלול לפחות 500 פאונד לכל שלב. השלבים יהיו ברמה של הבית. לוח ריצה יודק לבית. הקבלן יטפל בניקוי."]
[null,"לא כלול"]
[null,"פרטי הפרוייקט שאינם כלולים מופיעים כאן. הקלד את כל מה שאינו כלול בהצעת מחיר זו. \n\nטקסט לדוגמה: לא יותקנו מסילות. שטח להכנה על-ידי הבעלים. מדרגות שיש לצבוע על-ידי הבעלים."]
[null,"הצעת חברה"]
[null,"הצעת החברה מופיעה כאן. הקלד מבט כולל על ההצעה, כולל מי מציע את העבודה, תאריך ההשלמה הצפוי וסכום ההצעה.\n\nטקסט לדוגמה: אנו, שם החברה, מציעים את היקף העבודה לעיל, שיש להשלים עד תאריך ההשלמה עבור הסכום הכולל."]
[]
[null,"הוגש על-ידי (נציג החברה)",null,null,"תאריך"]
[null,"קבלת בעלים"]
[null,"קבלת הבעלים מופיעה כאן. הקלד את שם הבעלים במשפט אישור הכולל את תאריך ההשלמה והסכום הכולל שצוין בהצעת החברה. \n\nטקסט לדוגמה: אני, שם בעלים, מקבל את טווח העבודה לעיל, מוצע להסתיים עד תאריך השלמה עבור הסכום הכולל."]
[]
[null,"הוגש על-ידי (בעל הבית או נציג מורשה)",null,null,"תאריך"]

{"sheet":"נתוני תרשים","index":1,"n_rows":7,"n_cols":3,"rows_kept":7,"hidden":true}
[]
[null,null,"סה\"כ"]
[null,{"$f":"INDEX(פריטי_הצעת_מחיר[#Data],MATCH(1,פריטי_הצעת_מחיר[עלויות מדורגות],0),2)","v":"חיובי הפועלים"},{"$f":"INDEX(פריטי_הצעת_מחיר[#Data],MATCH(1,פריטי_הצעת_מחיר[עלויות מדורגות],0),4)","v":200}]
[null,{"$f":"INDEX(פריטי_הצעת_מחיר[#Data],MATCH(2,פריטי_הצעת_מחיר[עלויות מדורגות],0),2)","v":"2x4x10 עץ"},{"$f":"INDEX(פריטי_הצעת_מחיר[#Data],MATCH(2,פריטי_הצעת_מחיר[עלויות מדורגות],0),4)","v":99.39999999999999}]
[null,{"$f":"INDEX(פריטי_הצעת_מחיר[#Data],MATCH(3,פריטי_הצעת_מחיר[עלויות מדורגות],0),2)","v":"סוגרי קורות"},{"$f":"INDEX(פריטי_הצעת_מחיר[#Data],MATCH(3,פריטי_הצעת_מחיר[עלויות מדורגות],0),4)","v":74.7}]
[null,{"$f":"INDEX(פריטי_הצעת_מחיר[#Data],MATCH(4,פריטי_הצעת_מחיר[עלויות מדורגות],0),2)","v":"2x8x10 עץ"},{"$f":"INDEX(פריטי_הצעת_מחיר[#Data],MATCH(4,פריטי_הצעת_מחיר[עלויות מדורגות],0),4)","v":33.75}]
[null,{"$f":"INDEX(פריטי_הצעת_מחיר[#Data],MATCH(5,פריטי_הצעת_מחיר[עלויות מדורגות],0),2)","v":"זוג כפפות, עור"},{"$f":"INDEX(פריטי_הצעת_מחיר[#Data],MATCH(5,פריטי_הצעת_מחיר[עלויות מדורגות],0),4)","v":15.5}]

{"sheet":"פירוט עלות","index":2,"n_rows":14,"n_cols":6,"rows_kept":14,"merged":[[0,1,0,4],[1,1,1,4]]}
[null,"פירוט עלויות",{"$nulls":3}," "]
[null,"רשימת חומרים ועלויות"]
[null,"כמות.","תיאור","עלות","סה\"כ","עלויות מדורגות"]
[null,5,"2x8x10 עץ",{"v":6.75,"d":"₪ 6.75"},{"$f":"IFERROR(פריטי_הצעת_מחיר[[#This Row],[עלות]]*פריטי_הצעת_מחיר[[#This Row],[כמות.]], \"\")","v":{"v":33.75,"d":"₪ 33.75"}},{"$f":"_xlfn.RANK.EQ(פריטי_הצעת_מחיר[[#This Row],[סה\"כ]],פריטי_הצעת_מחיר[סה\"כ])","v":4}]
[null,20,"2x4x10 עץ",{"v":4.97,"d":"₪ 4.97"},{"$f":"IFERROR(פריטי_הצעת_מחיר[[#This Row],[עלות]]*פריטי_הצעת_מחיר[[#This Row],[כמות.]], \"\")","v":{"v":99.39999999999999,"d":"₪ 99.40"}},{"$f":"_xlfn.RANK.EQ(פריטי_הצעת_מחיר[[#This Row],[סה\"כ]],פריטי_הצעת_מחיר[סה\"כ])","v":2}]
[null,30,"סוגרי קורות",{"v":2.49,"d":"₪ 2.49"},{"$f":"IFERROR(פריטי_הצעת_מחיר[[#This Row],[עלות]]*פריטי_הצעת_מחיר[[#This Row],[כמות.]], \"\")","v":{"v":74.7,"d":"₪ 74.70"}},{"$f":"_xlfn.RANK.EQ(פריטי_הצעת_מחיר[[#This Row],[סה\"כ]],פריטי_הצעת_מחיר[סה\"כ])","v":3}]
[null,2,"קופסת ברגים, 2 אינץ'",{"v":6.67,"d":"₪ 6.67"},{"$f":"IFERROR(פריטי_הצעת_מחיר[[#This Row],[עלות]]*פריטי_הצעת_מחיר[[#This Row],[כמות.]], \"\")","v":{"v":13.34,"d":"₪ 13.34"}},{"$f":"_xlfn.RANK.EQ(פריטי_הצעת_מחיר[[#This Row],[סה\"כ]],פריטי_הצעת_מחיר[סה\"כ])","v":6}]
[null,2,"קופסת מסמרים, 10 אגורות",{"v":3.25,"d":"₪ 3.25"},{"$f":"IFERROR(פריטי_הצעת_מחיר[[#This Row],[עלות]]*פריטי_הצעת_מחיר[[#This Row],[כמות.]], \"\")","v":{"v":6.5,"d":"₪ 6.50"}},{"$f":"_xlfn.RANK.EQ(פריטי_הצעת_מחיר[[#This Row],[סה\"כ]],פריטי_הצעת_מחיר[סה\"כ])","v":7}]
[null,2,"זוג כפפות, עור",{"v":7.75,"d":"₪ 7.75"},{"$f":"IFERROR(פריטי_הצעת_מחיר[[#This Row],[עלות]]*פריטי_הצעת_מחיר[[#This Row],[כמות.]], \"\")","v":{"v":15.5,"d":"₪ 15.50"}},{"$f":"_xlfn.RANK.EQ(פריטי_הצעת_מחיר[[#This Row],[סה\"כ]],פריטי_הצעת_מחיר[סה\"כ])","v":5}]
[null,2,"חיובי הפועלים",{"v":100,"d":"₪ 100.00"},{"$f":"IFERROR(פריטי_הצעת_מחיר[[#This Row],[עלות]]*פריטי_הצעת_מחיר[[#This Row],[כמות.]], \"\")","v":{"v":200,"d":"₪ 200.00"}},{"$f":"_xlfn.RANK.EQ(פריטי_הצעת_מחיר[[#This Row],[סה\"כ]],פריטי_הצעת_מחיר[סה\"כ])","v":1}]
[4,null,null,"סכום ביניים",{"$f":"SUBTOTAL(109,פריטי_הצעת_מחיר[סה\"כ])","v":{"v":443.18999999999994,"d":"₪ 443.19"}}]
[5,null,null,"שיעור מס",{"v":0.075,"d":"7.50%"}]
[{"$nulls":3},"מס",{"$f":"IFERROR(שיעור_מס*פריטי_הצעת_מחיר[[#Totals],[סה\"כ]], \"\")","v":{"v":33.23924999999999,"d":"₪ 33.24"}}]
[{"$nulls":3},"סכום כולל",{"$f":"IFERROR(מס+פריטי_הצעת_מחיר[[#Totals],[סה\"כ]], \"\")","v":{"v":476.4292499999999,"d":"₪ 476.43"}}]

{"sheet":"סיכום עלות הצעת מחיר","index":3,"n_rows":3,"n_cols":4,"rows_kept":3}
[null,"סיכום עלות הצעת מחיר"]
[null,"פירוט של חומרים ועלויות",null,"הערות"]
[null,"תרשים עוגה המציג את 5 העלויות המובילות לכל חומר. הנתונים מבוססים על הטבלה 'פריטי הצעת מחיר' בגיליון העבודה 'פירוט עלויות'",null,"הזן הערות בתא זה."]